bitfinex/quotes_ETHUSD_20240828
["timestamp","ask_amount","ask_price","bid_price","bid_amount"]
[1724888455983,3.0,2538.4,2537.9,4.49024]
[1724888455984,3.0,2538.2,2537.9,4.49024]
[1724888456380,3.0,2538.3,2537.9,4.49024]
[1724888457118,3.0,2538.3,2537.9,0.55]
[1724888457422,3.0,2538.3,2537.9,4.49023]
[1724888457720,3.0,2538.3,2537.9,1.641756]
[1724888457721,6.93966,2538.3,2537.9,1.641756]
[1724888458157,6.93966,2538.3,2537.9,0.55]
[1724888459315,10.87938,2538.3,2537.9,0.55]
[1724888459522,3.9398,2538.2,2537.9,0.55]
[1724888459720,3.9398,2538.2,2537.8,0.55]
[1724888461097,3.93996,2538.1,2537.8,0.55]
[1724888461538,3.94025,2538.0,2537.5,2.4092]
[1724888461747,3.94025,2538.0,2537.6,1.579107]
[1724888462144,2.3464,2538.2,2537.5,2.4092]
[1724888462145,6.53721583,2538.2,2537.5,2.4092]
[1724888462354,3.94065,2537.7,2537.3,2.4092]
[1724888463439,3.94037,2537.9,2537.3,2.4092]
[1724888463440,3.94037,2537.9,2537.4,3.94095]
[1724888463645,3.94058,2537.7,2537.4,0.79092]
[1724888463942,3.94037,2537.9,2537.4,0.79092]
[1724888464117,7.88074,2537.9,2537.4,0.79092]
[1724888464316,3.94036,2537.9,2537.4,0.79092]
[1724888464509,3.94036,2537.9,2537.4,4.73194]
[1724888464708,3.94036,2537.9,2537.5,0.714114]
[1724888464935,6.94006,2538.1,2537.7,2.4295]
[1724888465254,3.0,2538.1,2537.7,2.4295]
[1724888465457,3.93973,2538.3,2537.7,2.4295]
[1724888465458,3.0,2538.2,2537.8,0.55]
[1724888466150,3.0,2538.2,2537.8,4.49035]
[1724888470760,3.0,2538.2,2537.8,8.43068]
[1724888470967,3.0,2538.2,2537.8,4.49033]
[1724888471168,3.0,2538.2,2537.8,5.6455783]
[1724888472055,3.0,2538.2,2537.8,5.6456483]
[1724888472375,3.0,2538.2,2537.9,3.94025]
[1724888472961,6.93958,2538.4,2537.9,3.94025]
[1724888473465,6.93958,2538.4,2537.9,5.14178983]
[1724888473662,6.93958,2538.4,2537.9,1.20153983]
[1724888473820,3.93943,2538.5,2537.9,1.2803409]
[1724888474025,6.41821784,2538.7,2538.2,3.93979]
[1724888474026,3.93912,2538.7,2538.2,3.93979]
[1724888474226,3.93881,2538.9,2538.3,0.55]
[1724888474227,12.71924784,2538.9,2538.3,0.55]
[1724888474528,3.93889,2538.8,2538.3,0.55]
[1724888474923,3.93891,2538.8,2538.3,5.169219]
[1724888475662,6.30131,2538.9,2538.3,5.169219]
[1724888475867,3.93881,2538.9,2538.4,6.33956]
[1724888476373,3.93881,2538.9,2538.4,10.27896]
[1724888476567,3.93881,2538.9,2538.5,1.1508639]
[1724888477062,6.207,2539.1,2538.5,1.1508639]
[1724888477063,6.207,2539.1,2538.5,5.0901839]
[1724888477269,10.1455,2539.1,2538.6,0.55]
[1724888477436,3.0,2539.0,2538.6,1.75584526]
[1724888477639,3.0,2539.0,2538.6,5.69501526]
[1724888478960,6.9387,2539.0,2538.6,1.75584526]
[1724888479132,3.93874,2538.9,2538.6,0.55]
[1724888479334,3.93874,2538.9,2538.5,0.55]
[1724888479563,3.93874,2538.9,2538.5,1.238949]
[1724888479770,3.0,2539.0,2538.5,1.238949]
[1724888480068,6.207,2539.1,2538.5,5.178229]
[1724888480801,10.14554,2539.1,2538.5,5.178229]
[1724888481000,10.14554,2539.1,2538.6,1.1517699]
[1724888481189,10.14554,2539.1,2538.7,0.55]
[1724888481389,3.93826,2539.2,2538.7,0.55]
[1724888481572,3.0,2539.1,2538.8,2.2528]
[1724888481757,3.93826,2539.2,2538.8,2.2528]
[1724888481758,2.4645,2539.4,2538.9,0.83028]
[1724888481962,6.66470099,2539.7,2539.0,3.93851]
[1724888481963,6.40205,2539.7,2539.0,3.93851]
[1724888482278,6.40205,2539.7,2538.9,0.90904531]
[1724888482279,7.87455,2539.9,2539.2,7.87642]
[1724888482615,3.93755,2539.7,2539.3,0.55]
[1724888482961,7.87511,2539.7,2539.3,0.55]
[1724888483159,3.93764,2539.6,2539.3,0.55]
[1724888483499,2.4645,2540.0,2538.5,6.19211]
[1724888483500,3.93853,2539.1,2538.5,6.19211]
[1724888483859,3.93857,2539.0,2538.5,2.2528]
[1724888484213,3.93915,2538.7,2538.5,2.2528]
[1724888484358,3.9392,2538.6,2538.2,2.2528]
[1724888485058,3.93915,2538.7,2538.2,2.2528]
[1724888485266,3.93913,2538.7,2538.2,2.2528]
[1724888485795,3.93927,2538.6,2538.2,2.2528]
[1724888486304,3.93927,2538.6,2538.2,2.90034906]
[1724888486501,7.58466883,2539.0,2538.3,2.9847]
[1724888486502,3.93883,2538.9,2538.3,2.9847]
[1724888486717,3.93889,2538.8,2538.3,6.92429]
[1724888486864,3.93883,2538.9,2538.3,6.92429]
[1724888486865,3.93903,2538.7,2538.4,0.75718391]
[1724888487176,3.93903,2538.7,2538.2,0.64754906]
[1724888487177,3.93927,2538.6,2538.2,0.64754906]
[1724888487376,3.93927,2538.6,2538.3,0.55]
[1724888487675,3.93934,2538.5,2538.3,0.55]
[1724888487878,3.93934,2538.5,2538.2,0.55]
[1724888488086,3.93903,2538.7,2538.2,0.87674206]
[1724888488501,3.93927,2538.6,2538.2,0.87674206]
[1724888488674,3.93927,2538.6,2538.2,0.55]
[1724888488876,3.93896,2538.8,2538.2,0.55]
[1724888489080,3.93896,2538.8,2538.2,4.48969]
[1724888490324,3.93896,2538.8,2538.3,3.93962]
[1724888490469,3.93896,2538.8,2538.4,0.998962]
[1724888494386,3.93873,2538.9,2538.4,0.998962]
[1724888495788,6.93863,2539.0,2538.4,4.938432]
[1724888496125,10.87727,2539.0,2538.5,2.3513]
[1724888496429,3.93873,2538.9,2538.5,2.3513]
[1724888497732,3.0,2539.0,2538.5,2.3513]
[1724888497882,6.93859,2539.0,2538.5,2.3513]
[1724888499006,3.93873,2538.9,2538.5,2.3513]
[1724888503431,9.204448,2538.9,2538.4,0.55]
[1724888504010,3.93873,2538.9,2538.4,0.55]
[1724888504216,3.93873,2538.9,2538.4,4.48945]
[1724888506310,7.87757,2538.9,2538.4,0.55]
[1724888506513,3.93873,2538.9,2538.4,0.55]
[1724888509125,3.93873,2538.9,2538.4,4.48946]
[1724888510944,7.87754,2538.9,2538.4,4.48946]
[1724888511101,7.87753,2538.9,2538.4,0.55]
[1724888511298,3.93873,2538.9,2538.4,0.55]
[1724888512497,3.93873,2538.9,2538.4,1.627727]
[1724888513540,3.93873,2538.9,2538.4,5.567207]
[1724888513727,7.87753,2538.9,2538.4,5.567207]
[1724888513902,3.93873,2538.9,2538.4,5.567207]
[1724888516397,3.93873,2538.9,2538.5,0.61672641]
[1724888516600,3.93873,2538.9,2538.4,5.567207]
[1724888519045,7.87753,2538.9,2538.4,5.567207]
[1724888519228,7.87753,2538.9,2538.4,1.627727]
[1724888519443,7.87753,2538.9,2538.4,0.55]
[1724888519764,7.87755,2538.9,2538.4,0.55]
[1724888520745,10.35953135,2538.9,2538.4,0.55]
[1724888520922,7.87755,2538.9,2538.4,0.55]
[1724888523252,3.93888,2538.8,2538.4,0.55]
[1724888525654,3.93903,2538.7,2538.4,0.55]
[1724888527564,3.93903,2538.7,2538.5,0.55]
[1724888527855,3.93903,2538.7,2538.3,0.55]
[1724888528057,3.93903,2538.7,2538.3,1.627779]
[1724888532971,6.42213552,2538.7,2538.3,1.627779]
[1724888533146,10.36125552,2538.7,2538.3,1.627779]
[1724888533533,6.42213552,2538.7,2538.3,1.627779]
[1724888533733,10.36126552,2538.7,2538.3,1.627779]
[1724888533957,3.93919,2538.6,2538.3,0.55]
[1724888534183,3.9399,2538.2,2537.8,4.50109483]
[1724888534475,3.9399,2538.2,2537.8,2.4448]
[1724888534876,3.94001,2538.1,2537.8,2.4448]
[1724888535284,3.94001,2538.1,2537.7,7.41]
[1724888535444,7.87984,2538.2,2537.7,1.529155]
[1724888536385,3.93998,2538.1,2537.7,1.529155]
[1724888536543,3.93998,2538.1,2537.8,0.55]
[1724888538943,3.93998,2538.1,2537.7,0.55]
[1724888539144,3.93998,2538.1,2537.7,1.243557]
[1724888540078,3.94011,2538.0,2537.7,1.243557]
[1724888542769,7.87985,2538.2,2537.7,1.243557]
[1724888543107,2.48355938,2538.5,2538.0,1.74627535]
[1724888543274,3.0,2538.5,2538.3,3.93961]
[1724888543464,6.42252938,2538.8,2538.4,5.35346388]
[1724888543663,3.93897,2538.8,2538.4,4.78487535]
[1724888543860,3.93897,2538.8,2538.4,3.0386]
[1724888544361,3.93904,2538.7,2538.4,0.55]
[1724888544572,3.93904,2538.7,2538.3,0.55]
[1724888544778,3.93897,2538.8,2538.3,1.586829]
[1724888544980,3.0,2538.7,2538.3,1.586829]
[1724888545992,3.0,2538.7,2538.3,5.526439]
[1724888546799,6.9391,2538.7,2538.3,0.55]
[1724888550801,3.93918,2538.6,2538.3,0.55]
[1724888558808,2.3224,2538.5,2538.3,0.55]
[1724888559012,3.93981,2538.2,2537.8,2.4279]
[1724888560951,3.93981,2538.2,2537.9,0.55]
[1724888561239,3.93963,2538.4,2537.9,0.55]
[1724888561440,9.42065091,2538.6,2537.9,0.55]
[1724888561441,6.93928,2538.6,2537.9,0.55]
[1724888561626,6.93928,2538.6,2538.1,2.4999]
[1724888561808,6.93926,2538.6,2538.2,0.55]
[1724888563043,10.87857,2538.6,2538.2,0.55]
[1724888563540,6.93926,2538.6,2538.2,0.55]
[1724888563716,3.93934,2538.5,2538.2,0.55]
[1724888565937,3.93934,2538.5,2538.0,0.55]
[1724888566401,3.93934,2538.5,2538.0,1.42363554]
[1724888570753,3.88934,2538.5,2538.0,1.42363554]
[1724888570996,3.9395,2538.4,2538.0,1.42363554]
[1724888573726,7.87909,2538.4,2538.0,1.42363554]
[1724888573926,3.93973,2538.3,2538.0,0.55]
[1724888575948,3.93985,2538.2,2538.0,0.55]
[1724888576331,7.87952,2538.3,2538.0,0.55]
[1724888576939,3.93995,2538.1,2537.9,2.4999]
[1724888577139,3.93995,2538.1,2537.9,2.74989]
[1724888580969,3.9398,2538.2,2537.9,2.74989]
[1724888581364,3.93973,2538.3,2537.9,2.74989]
[1724888581566,3.93973,2538.3,2537.9,2.74869637]
[1724888582384,7.87948,2538.3,2537.9,2.74869637]
[1724888583360,7.87948,2538.3,2537.9,2.49870637]
[1724888586950,3.93973,2538.3,2537.9,2.49870637]
[1724888587288,6.93918,2538.6,2538.1,2.4943]
[1724888587435,6.93918,2538.6,2538.1,3.586756]
[1724888588962,3.93935,2538.5,2538.1,3.586756]
[1724888589887,3.0,2538.6,2538.1,3.66555152]
[1724888590043,7.45,2539.0,2538.3,2.2707]
[1724888590044,2.48292951,2538.8,2538.3,2.2707]
[1724888590241,9.93290947,2539.0,2538.5,2.2707]
[1724888590552,2.48290947,2539.3,2538.9,3.93871]
[1724888590758,2.48290947,2539.5,2539.1,3.9383]
[1724888590955,2.48290947,2539.6,2539.2,4.48821]
[1724888591152,2.48290947,2539.7,2539.2,4.48821]
[1724888591453,3.42175961,2540.2,2539.6,5.68378535]
[1724888591454,2.48290947,2540.0,2539.6,5.68378535]
[1724888591787,3.93682,2540.2,2539.7,1.11837854]
[1724888591944,3.93686,2540.1,2539.7,0.55]
[1724888592495,3.93686,2540.1,2539.5,0.55]
[1724888592496,3.93728,2539.9,2539.5,0.55]
[1724888592638,3.93742,2539.8,2539.4,0.55]
[1724888592842,3.93758,2539.7,2539.4,0.55]
[1724888593042,4.330938,2539.9,2539.0,6.33156]
[1724888593043,8.268208,2539.9,2539.1,1.74627535]
[1724888593274,8.268208,2539.9,2539.2,1.35778353]
[1724888593275,3.93721,2539.9,2539.2,1.35778353]
[1724888593940,3.93765,2539.6,2539.2,0.55]
[1724888594144,3.93765,2539.6,2539.1,0.55]
[1724888596979,7.87541,2539.6,2539.1,0.55]
[1724888597399,7.87537,2539.6,2539.1,0.55]
[1724888597687,3.9378,2539.5,2539.1,0.55]
[1724888597990,3.93765,2539.6,2539.1,0.55]
[1724888598187,3.93783,2539.5,2539.1,0.55]
[1724888599359,3.93783,2539.5,2539.1,1.01893754]
[1724888600368,3.93798,2539.4,2539.1,0.55]
[1724888601410,3.93824,2539.2,2539.1,0.55]
[1724888601616,3.93843,2539.1,2538.7,11.58137535]
[1724888601797,3.93843,2539.1,2538.8,0.55]
[1724888602002,3.93843,2539.1,2538.9,1.74627535]
[1724888602402,3.9381,2539.3,2538.9,1.74627535]
[1724888603807,3.93828,2539.2,2538.9,1.74627535]
[1724888604608,3.9381,2539.3,2538.9,1.74627535]
[1724888604822,7.87629,2539.3,2538.9,1.74627535]
[1724888605195,3.9381,2539.3,2538.9,1.74627535]
[1724888605816,7.87629,2539.3,2538.9,1.74627535]
[1724888606325,3.9381,2539.3,2538.9,1.74627535]
[1724888607716,7.87628,2539.3,2538.9,1.74627535]
[1724888607917,3.9381,2539.3,2538.9,1.74627535]
[1724888610136,3.9381,2539.3,2538.9,2.76750234]
[1724888612641,7.87578,2539.5,2539.0,0.55]
[1724888613141,3.93801,2539.4,2539.0,0.55]
[1724888616281,3.93801,2539.4,2539.1,2.4785]
[1724888617382,5.499,2539.7,2539.1,2.4785]
[1724888617542,3.93782,2539.5,2539.2,0.55]
[1724888619172,7.87572,2539.5,2539.2,0.55]
[1724888619674,4.688634,2539.6,2539.1,2.4785]
[1724888619675,3.93809,2539.3,2539.1,2.4785]
[1724888625971,3.93809,2539.3,2538.9,4.12457535]
[1724888626172,3.93809,2539.3,2539.0,0.55]
[1724888627471,6.31919,2539.3,2539.0,0.55]
[1724888628165,10.25742,2539.3,2539.0,0.55]
[1724888628371,6.31919,2539.3,2539.0,0.55]
[1724888628867,3.0,2539.6,2539.1,2.4998]
[1724888629066,3.0,2539.5,2539.2,0.55]
[1724888629265,3.0,2539.5,2539.2,1.09295096]
[1724888629493,7.45,2539.8,2539.2,1.09295096]
[1724888629494,6.93756,2539.7,2539.2,1.09295096]
[1724888629703,6.93756,2539.7,2539.2,0.55]
[1724888630990,3.9379,2539.5,2539.2,0.55]
[1724888631189,3.93802,2539.4,2538.9,2.2763]
[1724888631497,3.93802,2539.4,2539.0,0.55]
[1724888633366,6.376,2539.5,2539.0,0.55]
[1724888633367,10.31387,2539.5,2539.0,0.55]
[1724888633564,3.93787,2539.5,2539.0,0.55]
[1724888634270,7.87577,2539.5,2539.0,0.55]
[1724888641802,3.93787,2539.5,2539.0,0.55]
[1724888642542,7.87577,2539.5,2539.0,0.55]
[1724888642759,10.35875955,2539.5,2539.0,0.55]
[1724888643236,6.42085955,2539.5,2539.0,0.55]
[1724888643435,3.9381,2539.3,2539.0,0.55]
[1724888644145,3.93834,2539.2,2538.9,2.2763]
[1724888644346,3.93834,2539.2,2538.7,2.80092327]
[1724888644520,3.93834,2539.2,2538.8,0.55]
[1724888646749,3.93834,2539.2,2538.9,0.61660614]
[1724888646932,3.93834,2539.2,2538.8,0.55]
[1724888647107,3.93834,2539.2,2538.9,0.61660856]
[1724888647443,3.9384,2539.1,2538.8,0.55]
[1724888647649,3.9381,2539.3,2538.8,0.55]
[1724888647650,3.93825,2539.2,2538.9,0.61661819]
[1724888647813,3.9381,2539.3,2538.8,3.2608769]
[1724888648241,3.9381,2539.3,2538.9,0.61660108]
[1724888648407,3.9381,2539.3,2538.9,1.12271581]
[1724888648613,6.42108955,2539.3,2538.9,1.12271581]
[1724888649223,6.42108955,2539.3,2539.0,2.3625]
[1724888649527,3.9381,2539.3,2539.0,2.3625]
[1724888650631,2.48298955,2539.4,2539.0,2.3625]
[1724888650811,5.48298955,2539.4,2539.0,2.3625]
[1724888651209,9.42094955,2539.4,2539.0,2.3625]
[1724888651463,3.9381,2539.3,2539.0,2.3625]
[1724888651612,3.9381,2539.3,2538.8,6.85128]
[1724888651817,3.9381,2539.3,2538.9,0.6166136]
[1724888652125,3.9381,2539.3,2538.8,7.42153133]
[1724888652326,3.9381,2539.3,2538.9,0.55]
[1724888655416,3.9381,2539.3,2538.8,7.42153133]
[1724888655618,7.87627,2539.3,2538.9,0.55]
[1724888655838,3.9381,2539.3,2538.9,0.55]
[1724888659361,3.93825,2539.2,2538.9,0.55]
[1724888659569,3.93825,2539.2,2538.8,0.55]
[1724888659768,3.93864,2539.0,2538.7,0.41212327]
[1724888659927,2.2951,2539.0,2538.7,0.41212327]
[1724888660129,2.2951,2539.0,2538.5,2.3479]
[1724888660627,3.93872,2538.9,2538.3,2.71739431]
[1724888660828,3.93872,2538.9,2538.3,3.71660979]
[1724888660829,3.93887,2538.8,2538.3,3.71660979]
[1724888661132,3.93887,2538.8,2538.3,7.65623979]
[1724888661529,3.93887,2538.8,2538.4,0.55]
[1724888662431,3.93872,2538.9,2538.4,2.29627535]
[1724888662628,10.45,2539.4,2539.1,6.4286]
[1724888662629,2.48341143,2539.4,2539.1,6.4286]
[1724888662831,5.17761334,2539.6,2539.1,6.4286]
[1724888662832,2.48341143,2539.6,2539.3,1.74627535]
[1724888663059,6.21771,2539.8,2539.3,2.61874689]
[1724888663060,2.48341143,2539.8,2539.3,2.61874689]
[1724888663233,2.48341143,2539.8,2539.4,2.818]
[1724888663439,2.48341143,2539.8,2539.4,6.75585]
[1724888663646,6.42073143,2539.8,2539.4,2.818]
[1724888664030,6.42073143,2539.8,2538.9,2.3633]
[1724888664031,3.93796,2539.4,2538.9,2.3633]
[1724888664230,3.93796,2539.4,2538.4,3.06182177]
[1724888664231,3.9384,2539.1,2538.4,9.45636492]
[1724888664456,3.93835,2539.2,2538.7,2.3633]
[1724888664849,7.8767,2539.2,2538.7,2.3633]
[1724888665069,3.93835,2539.2,2538.8,0.55]
[1724888667465,10.35805237,2539.4,2538.8,0.55]
[1724888667829,3.93798,2539.4,2538.8,4.48873]
[1724888668032,3.93798,2539.4,2538.8,9.28732054]
[1724888668231,6.41998237,2539.4,2538.8,9.28732054]
[1724888668469,6.41998237,2539.4,2538.8,5.34856054]
[1724888668718,3.93798,2539.4,2538.8,7.09483589]
[1724888668864,2.48200237,2539.6,2539.2,5.68440535]
[1724888669178,9.93200237,2539.7,2539.3,0.55]
[1724888669470,2.3997,2539.5,2539.0,2.4238]
[1724888669675,6.33763,2539.5,2539.0,2.4238]
[1724888669836,6.33763,2539.5,2538.8,10.15469]
[1724888670038,6.33763,2539.5,2538.9,0.55]
[1724888670257,8.52105656,2539.5,2538.9,0.55]
[1724888670573,8.52105656,2539.5,2538.9,6.23495535]
[1724888670779,6.33763,2539.5,2538.9,6.23495535]
[1724888671136,3.93794,2539.4,2538.9,6.23495535]
[1724888671681,7.87596,2539.4,2538.9,0.55]
[1724888671838,3.93794,2539.4,2538.9,0.55]
[1724888672033,5.21363511,2539.4,2538.9,0.55]
[1724888672241,3.93817,2539.3,2538.9,0.55]
[1724888672536,3.93821,2539.3,2538.7,3.93893]
[1724888672742,3.93821,2539.3,2538.7,5.68520535]
[1724888673034,2.3356,2539.4,2538.8,6.39936]
[1724888673234,2.48160114,2539.6,2539.0,3.93847]
[1724888673435,7.56690871,2539.6,2539.0,3.93845]
[1724888673637,7.45,2539.7,2539.3,3.93798]
[1724888673860,2.48160114,2539.8,2539.4,3.93783]
[1724888674050,3.0,2539.8,2539.4,3.93783]
[1724888674636,3.0,2539.8,2539.3,5.68425535]
[1724888674637,3.0,2539.8,2539.3,9.62224535]
[1724888674872,3.0,2539.8,2539.4,4.48793]
[1724888678820,3.0,2539.8,2539.4,0.55]
[1724888679677,2.4618,2539.9,2539.4,5.561829]
[1724888680318,6.39898,2539.9,2539.4,1.623919]
[1724888680525,6.39898,2539.9,2539.4,0.55]
[1724888682801,3.0,2540.0,2539.5,2.4414]
[1724888683100,13.8662576,2540.2,2539.6,4.48754]
[1724888683306,9.9294876,2540.2,2539.7,3.93745]
[1724888683915,7.45,2540.2,2539.7,3.93738]
[1724888684115,7.45,2540.2,2539.7,3.93735]
[1724888684337,7.45,2540.2,2539.7,4.73967956]
[1724888684753,7.45,2540.2,2539.8,3.93723]
[1724888684910,7.45,2540.2,2539.9,2.2623]
[1724888688057,6.93641,2540.4,2539.9,2.2623]
[1724888692964,3.0,2540.4,2539.9,6.19944]
[1724888693160,3.0,2540.4,2539.9,6.19936]
[1724888695915,3.0,2540.4,2540.0,3.937]
[1724888696074,3.0,2540.5,2540.1,3.93676]
[1724888696277,3.0,2540.5,2540.2,3.93669]
[1724888696677,4.0597862,2540.7,2540.2,3.93669]
[1724888696678,3.0,2540.6,2540.2,3.93669]
[1724888696926,1.82246637,2541.3,2540.8,1.5712]
[1724888697219,0.01,2541.5,2541.4,7.86966]
[1724888697420,0.01,2541.5,2541.4,0.23405712]
[1724888697601,0.01,2541.5,2541.0,3.93536]
[1724888697807,0.01,2541.5,2541.2,3.93499]
[1724888698019,0.01,2541.5,2541.0,3.9354]
[1724888698187,0.01,2541.5,2541.2,3.93512]
[1724888698515,0.01,2541.5,2541.0,3.93535]
[1724888699917,0.01,2541.5,2541.3,3.93488]
[1724888700118,0.01,2541.5,2540.9,3.93555]
[1724888700278,2.4464,2541.4,2540.9,3.9355]
[1724888700477,2.4464,2541.4,2540.9,3.93548]
[1724888700679,3.93537,2541.1,2540.5,4.00470579]
[1724888700915,2.69254,2541.4,2540.9,3.9356]
[1724888701132,2.4464,2541.4,2540.9,3.9356]
[1724888701317,2.4464,2541.4,2540.9,7.8712]
[1724888701509,2.4464,2541.4,2540.9,4.18757093]
[1724888701721,0.01,2541.5,2541.4,3.93483]
[1724888701882,0.01,2541.5,2541.3,3.93488]
[1724888702398,0.01,2541.5,2541.4,3.93483]
[1724888702580,0.01,2541.5,2541.3,3.93488]
[1724888702777,0.01,2541.5,2541.2,4.18757093]
[1724888703519,0.01,2541.5,2541.2,8.12271093]
[1724888703831,0.01,2541.5,2541.2,8.12262093]
[1724888704819,3.93486,2541.4,2540.9,4.18757093]
[1724888705022,0.01,2541.5,2540.9,8.12308093]
[1724888705181,0.01,2541.5,2540.8,3.93565]
[1724888705182,3.93516,2541.2,2540.4,3.93636]
[1724888705382,6.34945,2541.4,2540.7,4.18757093]
[1724888705582,6.34945,2541.4,2540.9,3.9356]
[1724888705583,2.4145,2541.4,2540.9,3.9356]
[1724888705783,2.4145,2541.4,2541.1,3.93529]
[1724888706602,2.4145,2541.4,2540.9,3.9355]
[1724888708880,2.4145,2541.4,2541.1,3.93528]
[1724888709090,2.4145,2541.4,2540.9,3.9355]
[1724888709321,2.4145,2541.4,2540.4,3.93628]
[1724888709322,3.93539,2541.1,2540.4,3.93628]
[1724888709489,6.985813,2541.4,2540.4,3.93628]
[1724888709695,6.34941,2541.4,2540.4,3.93628]
[1724888709919,3.0,2541.3,2540.4,3.93628]
[1724888710150,3.93541,2541.1,2540.4,3.93628]
[1724888710426,3.93547,2541.0,2540.4,3.93628]
[1724888710724,7.87104,2541.0,2540.5,0.55]
[1724888711031,2.3666,2540.9,2540.2,3.93664]
[1724888711211,2.996807,2540.9,2540.0,3.93689]
[1724888711426,2.3666,2540.7,2539.8,3.93722]
[1724888711598,3.93652,2540.4,2539.8,3.93721]
[1724888711799,3.93652,2540.4,2539.6,3.93756]
[1724888711991,2.3666,2540.1,2539.6,3.93753]
[1724888712225,2.3666,2540.1,2539.4,3.93786]
[1724888712542,2.3666,2540.1,2539.4,3.93784]
[1724888712831,2.3666,2540.1,2539.6,3.93758]
[1724888713243,2.3666,2540.5,2539.7,0.07875355]
[1724888713442,7.21894596,2540.7,2539.9,4.18757093]
[1724888713745,2.3131,2540.9,2540.2,4.18757093]
[1724888713967,3.93529,2541.2,2540.6,3.93598]
[1724888714118,3.9353,2541.1,2540.4,3.93626]
[1724888714461,2.4717,2540.7,2540.2,9.83862]
[1724888714617,2.4717,2540.7,2540.2,5.902]
[1724888714618,6.40767,2540.7,2540.2,5.902]
[1724888714965,3.93609,2540.6,2540.2,5.902]
[1724888715168,2.4717,2540.7,2540.2,5.902]
[1724888715336,3.93553,2541.0,2540.2,5.902]
[1724888715337,2.4717,2541.1,2540.7,3.93577]
[1724888716258,2.4247,2541.4,2540.9,3.93549]
[1724888717322,6.35955,2541.4,2540.9,3.93549]
[1724888718273,2.4247,2541.4,2540.9,3.93549]
[1724888719184,6.35957,2541.4,2540.7,3.93583]
[1724888719485,6.35957,2541.4,2540.6,3.93605]
[1724888719486,3.93526,2541.2,2540.6,3.93605]
[1724888719843,6.35963,2541.4,2540.8,3.93564]
[1724888720449,6.35963,2541.4,2540.8,3.9357]
[1724888720450,2.4247,2541.4,2540.8,3.9357]
[1724888720655,6.35962,2541.4,2540.6,3.93594]
[1724888720851,6.35962,2541.4,2540.7,0.55]
[1724888721245,10.29458,2541.4,2540.7,4.4858]
[1724888721444,6.35962,2541.4,2540.7,0.55]
[1724888722338,6.35965,2541.4,2540.7,4.48586]
[1724888722763,2.4247,2541.4,2541.0,3.93544]
[1724888722964,2.4247,2541.4,2541.1,3.93528]
[1724888723165,2.4247,2541.4,2541.2,3.93514]
[1724888723385,2.4247,2541.4,2541.1,3.93528]
[1724888723581,2.4247,2541.4,2541.2,3.93514]
[1724888724365,0.01,2541.5,2541.3,3.93494]
[1724888724691,0.01,2541.5,2541.4,3.93483]
[1724888724899,0.01,2541.5,2541.4,4.48483]
[1724888725438,0.01,2541.5,2541.4,18.94905216]
[1724888725581,0.01,2541.5,2541.4,21.94905216]
[1724888725778,0.01,2541.5,2541.4,21.87036093]
[1724888725983,6.32614,2542.5,2542.0,5.887]
[1724888726212,3.93334,2542.4,2542.0,5.887]
[1724888729521,7.86677,2542.4,2542.0,5.887]
[1724888729834,3.93344,2542.3,2542.0,5.887]
[1724888729992,2.3686,2542.2,2542.0,5.887]
[1724888730200,6.30223,2542.2,2542.0,5.887]
[1724888730508,3.93375,2542.1,2542.0,5.887]
[1724888730710,10.275,2542.1,2542.0,5.887]
[1724888730901,14.3025,2542.1,2542.0,5.887]
[1724888731998,14.3025,2542.1,2541.4,3.9348]
[1724888731999,3.93398,2542.0,2541.4,3.9348]
[1724888732493,6.34125,2542.1,2541.5,4.48453]
[1724888732707,6.34125,2542.1,2541.6,7.86887]
[1724888732708,2.4075,2542.1,2541.6,7.86887]
[1724888732908,2.4075,2542.1,2541.6,7.86885]
[1724888733132,2.4075,2542.1,2541.6,3.93442]
[1724888733313,3.0,2542.4,2541.7,3.93435]
[1724888733314,5.4536,2542.4,2541.7,3.93435]
[1724888733497,2.4536,2542.4,2541.8,4.48406]
[1724888733706,6.38689,2542.4,2541.8,8.41819]
[1724888733904,6.38689,2542.4,2541.8,4.48406]
[1724888734629,3.93346,2542.3,2541.8,4.48406]
[1724888736102,3.93377,2542.1,2541.8,0.55]
[1724888736403,2.4057,2542.0,2541.6,0.55]
[1724888736714,3.93408,2541.9,2541.4,0.55]
[1724888737928,0.45178,2542.0,2541.4,0.55]
[1724888738282,3.93414,2541.9,2541.4,0.55]
[1724888738900,7.8683,2541.9,2541.4,0.55]
[1724888739115,3.93414,2541.9,2541.4,0.55]
[1724888739320,3.93437,2541.7,2541.3,0.55]
[1724888740297,7.86883,2541.7,2541.3,0.55]
[1724888740512,3.93472,2541.5,2541.3,0.55]
[1724888740691,3.93472,2541.5,2540.8,6.66097093]
[1724888740892,3.93502,2541.3,2540.8,10.59673093]
[1724888741200,6.18492,2541.5,2540.9,3.93559]
[1724888741823,6.18492,2541.5,2540.9,7.87111]
[1724888741988,6.18492,2541.5,2541.0,0.55]
[1724888742525,3.93445,2541.7,2541.1,4.18757093]
[1724888743105,7.86896,2541.7,2541.1,8.12287093]
[1724888743521,11.15278596,2542.1,2541.4,4.18757093]
[1724888743803,3.93393,2542.0,2541.4,8.12231093]
[1724888743987,3.93393,2542.0,2541.5,0.55]